lending/lending_fUSD_20251116
["ID","MTS","AMOUNT","RATE_DAILY","PERIOD"]
[394122493,1763310016616,-152.0,0.00044,120]
[394122494,1763310016645,-500.0,0.00044,120]
[394122495,1763310016673,-153.12716,0.00044,120]
[394122496,1763310016705,-282.67905322,0.00044,30]
[394122497,1763310016735,-2241.85971319,0.00044,120]
[394122498,1763310016767,-2075.01,0.00044,30]
[394122499,1763310016800,-548.03751,0.00044,57]
[394122500,1763310016832,-150.0,0.00044,60]
[394122501,1763310016862,-189.41192621,0.00044042,30]
[394122502,1763310016893,-152.65065664,0.00044042,30]
[394122503,1763310016923,-150.0,0.00044051,30]
[394122504,1763310016951,-150.0,0.00044068,30]
[394122505,1763310016983,-152.02,0.00044071,120]
[394122506,1763310017015,-150.0,0.00044139,30]
[394122507,1763310017044,-150.0,0.00044156,30]
[394122508,1763310017074,-150.0,0.00044166,30]
[394122509,1763310017105,-152.02,0.00044171,120]
[394122510,1763310017135,-189.41192621,0.00044204,30]
[394122511,1763310017166,-152.65065664,0.00044204,30]
[394122512,1763310017197,-150.0,0.00044219,30]
[394122513,1763310017230,-150.0,0.00044231,30]
[394122514,1763310017258,-158.46345493,0.0004425,120]
[394122515,1763310017287,-150.0,0.00044258,30]
[394122516,1763310017322,-152.02,0.00044271,120]
[394122517,1763310017358,-150.0,0.00044281,30]
[394122518,1763310017388,-150.0,0.00044317,30]
[394122519,1763310017418,-150.0,0.00044351,30]
[394122520,1763310017447,-189.41192621,0.00044365,30]
[394122521,1763310017478,-152.65065664,0.00044365,30]
[394122522,1763310017509,-152.02,0.00044371,120]
[394122523,1763310017539,-418.87978512,0.000444,120]
[394122524,1763310017567,-150.0,0.00044411,30]
[394122525,1763310017598,-150.0,0.00044412,120]
[394122526,1763310017627,-1694.09,0.00044412,120]
[394122527,1763310017659,-152.02,0.00044471,120]
[394122528,1763310017692,-150.0,0.00044477,30]
[394122529,1763310017729,-150.0,0.00044494,30]
[394122530,1763310017765,-150.0,0.00044494,30]
[394122531,1763310017796,-513.47152723,0.000445,120]
[394122532,1763310017830,-189.41192621,0.00044527,30]
[394122533,1763310017862,-152.65065664,0.00044527,30]
[394122534,1763310017893,-150.0,0.00044546,30]
[394122535,1763310017927,-152.02,0.00044571,120]
[394122536,1763310017962,-150.0,0.00044576,30]
[394122537,1763310017992,-150.0,0.0004459,30]
[394122538,1763310018023,-150.0,0.00044628,30]
[394122539,1763310018055,-152.02,0.00044671,120]
[394122540,1763310018084,-150.0,0.00044672,30]
[394122541,1763310018114,-189.41192621,0.00044688,30]
[394122542,1763310018143,-152.65065664,0.00044688,30]
[394122543,1763310018172,-152.0,0.000447,120]
[394122544,1763310018201,-150.0,0.00044707,30]
[394122545,1763310018233,-150.0,0.00044735,30]
[394122546,1763310018260,-1208.37,0.0004474,30]
[394122547,1763310018291,-150.0,0.00044741,30]
[394122548,1763310018320,-150.0,0.0004477,30]
[394122549,1763310018350,-152.02,0.00044771,120]
[394122550,1763310018380,-152.0,0.000448,120]
[394122551,1763310018413,-189.41192621,0.0004485,30]
[394122552,1763310018441,-152.65065664,0.0004485,30]
[394122553,1763310018470,-150.0,0.0004485,30]
[394122554,1763310018500,-150.0,0.0004485,30]
[394122555,1763310018530,-152.02,0.00044871,120]
[394122556,1763310018559,-368.07205189,0.000449,30]
[394122557,1763310018587,-12477.04,0.000449,120]
[394122558,1763310018615,-150.0,0.00044921,30]
[394122559,1763310018643,-150.0,0.00044936,30]
[394122560,1763310018672,-150.0,0.00044949,30]
[394122561,1763310018701,-213.0,0.0004496,30]
[394122562,1763310018733,-150.0,0.00044961,30]
[394122563,1763310018943,-152.40227994,0.00044971,120]
[394122564,1763310018973,-150.0,0.00044986,30]
[394122565,1763310019004,-150.0,0.00044993,30]
[394122566,1763310019034,-333.12715739,0.00044998,120]
[394122567,1763310019066,-50000.0,0.00045,45]
[394122568,1763310019094,-343.97862376,0.00045,120]
[394122569,1763310019122,-238.35,0.00045,30]
[394122570,1763310019149,-380.83741197,0.00045,120]
[394122571,1763310019177,-610.77567032,0.00045,120]
[394122572,1763310019207,-161.08934561,0.00045,120]
[394122573,1763310019234,-541.02402358,0.00045,120]
[394122574,1763310019262,-219.85533953,0.00045,30]
[394122575,1763310019289,-213.61373026,0.00045,120]
[394122576,1763310019317,-1412.56328046,0.00045,120]
[394122577,1763310019347,-192.22007437,0.00045,30]
[394122578,1763310019381,-476.64584834,0.00045,60]
[394122579,1763310019414,-814.1692848,0.00045,120]
[394122580,1763310019444,-230.63645895,0.00045,120]
[394122581,1763310019477,-157.2,0.00045,85]
[394122582,1763310019506,-7872.35351687,0.00045,120]
[394122583,1763310019535,-1721.67922788,0.00045,120]
[394122584,1763310019563,-1400.0,0.00045,60]
[394122585,1763310019592,-300.0,0.00045,60]
[394122586,1763310019621,-263283.48273885,0.00045,120]
[394122587,1763310019651,-155.29488591,0.00045,120]
[394122588,1763310019679,-171.07,0.00045,120]
[394122589,1763310019709,-150.0,0.00045,60]
[394122590,1763310019738,-189.41192621,0.00045011,30]
[394122591,1763310019767,-152.65065664,0.00045011,30]
[394122592,1763310019794,-150.0,0.00045027,30]
[394122593,1763310019822,-150.0,0.00045103,30]
[394122594,1763310019850,-209.1860858,0.00045126,120]
[394122595,1763310019878,-150.0,0.00045129,30]
[394122596,1763310019905,-150.0,0.00045131,30]
[394122597,1763310019933,-150.0,0.00045134,30]
[394122598,1763310019980,-200.0,0.00045136,120]
[394122599,1763310020012,-189.41192621,0.00045172,30]
[394122600,1763310020042,-152.65065664,0.00045172,30]
[394122601,1763310020073,-192.40238035,0.000452,120]
[394122602,1763310020104,-1554.0,0.000452,120]
[394122603,1763310020136,-150.0,0.00045205,30]
[394122604,1763310020167,-150.0,0.00045251,30]
[394122605,1763310020199,-150.0,0.00045294,30]
[394122606,1763310020232,-152.0,0.000453,120]
[394122607,1763310020264,-150.0,0.00045309,30]
[394122608,1763310020297,-150.0,0.00045326,30]
[394122609,1763310020328,-189.41192621,0.00045334,30]
[394122610,1763310020359,-152.65065664,0.00045334,30]
[394122611,1763310020389,-150.0,0.00045347,30]
[394122612,1763310020426,-500.0,0.0004537,60]
[394122613,1763310020466,-150.0,0.00045382,30]
[394122614,1763310020497,-150.0,0.00045396,30]
[394122615,1763310020529,-150.0,0.00045442,30]
[394122616,1763310020561,-96136.1977,0.00045444,30]
[394122617,1763310020592,-150.0,0.00045488,30]
[394122618,1763310020624,-189.41192621,0.00045495,30]
[394122619,1763310020656,-152.65065664,0.00045495,30]
[394122620,1763310020687,-150.0,0.00045508,30]
[394122621,1763310020726,-150.0,0.00045521,30]
[394122622,1763310020758,-500.0,0.00045554,60]
[394122623,1763310020789,-150.0,0.0004556,30]
[394122624,1763310020821,-150.0,0.0004556,30]
[394122625,1763310020852,-150.0,0.0004556,30]
[394122626,1763310020885,-189.41192621,0.00045657,30]
[394122627,1763310020915,-152.65065664,0.00045657,30]
[394122628,1763310020951,-150.0,0.00045668,30]
[394122629,1763310020983,-152.0,0.000457,120]
[394122630,1763310021013,-150.0,0.00045716,30]
[394122631,1763310021044,-150.0,0.00045738,30]
[394122632,1763310021076,-150.0,0.00045766,30]
[394122633,1763310021107,-150.0,0.00045773,30]
[394122634,1763310021137,-150.0,0.00045806,30]
[394122635,1763310021166,-189.41192621,0.00045818,30]
[394122636,1763310021195,-152.65065664,0.00045818,30]
[394122637,1763310021231,-150.0,0.00045847,30]
[394122638,1763310021262,-150.0,0.00045863,120]
[394122639,1763310021292,-1067.77,0.00045871,30]
[394122640,1763310021323,-150.0,0.00045911,30]
[394122641,1763310021353,-150.0,0.00045915,30]
[394122642,1763310021383,-150.0,0.0004596,30]
[394122643,1763310021418,-150.0,0.0004596,30]
[394122644,1763310021449,-189.41192621,0.0004598,30]
[394122645,1763310021487,-152.65065664,0.0004598,30]
[394122646,1763310021516,-150.0,0.00045986,30]
[394122647,1763310021547,-50000.0,0.00046,46]
[394122648,1763310021577,-204.32742965,0.00046,30]
[394122649,1763310021607,-152.0,0.00046,120]
[394122650,1763310021635,-500.0,0.00046,120]
[394122651,1763310021665,-212.38814027,0.00046,30]
[394122652,1763310021692,-350.17203543,0.00046,90]
[394122653,1763310021722,-51566.74352604,0.00046,120]
[394122654,1763310021755,-451.38076788,0.00046,120]
[394122655,1763310021784,-584.55098594,0.00046,120]
[394122656,1763310021815,-477.68772552,0.00046,120]
[394122657,1763310021844,-150.0,0.00046,60]
[394122658,1763310022071,-244.22,0.00046,30]
[394122659,1763310022124,-150.0,0.00046024,30]
[394122660,1763310022159,-150.0,0.00046027,30]
[394122661,1763310022191,-150.0,0.00046034,30]
[394122662,1763310022226,-150.0,0.00046093,30]
[394122663,1763310022259,-150.0,0.00046106,30]
[394122664,1763310022293,-1039.562,0.00046126,76]
[394122665,1763310022325,-189.41192621,0.00046141,30]
[394122666,1763310022354,-152.65065664,0.00046141,30]
[394122667,1763310022383,-150.0,0.00046199,30]
[394122668,1763310022416,-150.0,0.00046207,30]
[394122669,1763310022445,-150.0,0.00046216,30]
[394122670,1763310022474,-150.0,0.0004627,30]
[394122671,1763310022504,-150.0,0.00046282,30]
[394122672,1763310022533,-150.0,0.00046301,30]
[394122673,1763310022570,-189.41192621,0.00046303,30]
[394122674,1763310022601,-152.65065664,0.00046303,30]
[394122675,1763310022633,-150.0,0.0004631,120]
[394122676,1763310022664,-150.0,0.0004633,120]
[394122677,1763310022697,-150.0,0.00046386,30]
[394122678,1763310022733,-845.6,0.000464,120]
[394122679,1763310022767,-309.86518646,0.000464,120]
[394122680,1763310022799,-150.0,0.00046413,30]
[394122681,1763310022831,-1208.76,0.00046419,30]
[394122682,1763310022863,-169.42,0.00046419,30]
[394122683,1763310022895,-1208.76,0.00046419,30]
[394122684,1763310022925,-150.0,0.00046419,30]
[394122685,1763310022958,-169.42,0.00046419,30]
[394122686,1763310022989,-150.0,0.00046419,30]
[394122687,1763310023020,-1208.76,0.00046419,30]
[394122688,1763310023052,-150.0,0.00046419,30]
[394122689,1763310023083,-169.42,0.00046419,30]
[394122690,1763310023115,-1206.46,0.00046419,30]
[394122691,1763310023147,-169.42,0.00046419,30]
[394122692,1763310023178,-150.0,0.00046419,30]
[394122693,1763310023211,-169.42,0.00046419,30]
[394122694,1763310023243,-150.0,0.00046419,30]
[394122695,1763310023274,-169.42,0.00046419,30]
[394122696,1763310023305,-150.0,0.00046419,30]
[394122697,1763310023337,-150.0,0.00046419,30]
[394122698,1763310023370,-169.42,0.00046419,30]
[394122699,1763310023402,-150.0,0.00046419,30]
[394122700,1763310023434,-169.42,0.00046419,30]
[394122701,1763310023464,-150.0,0.00046419,30]
[394122702,1763310023497,-169.42,0.00046419,30]
[394122703,1763310023529,-169.42,0.00046419,30]
[394122704,1763310023559,-169.42,0.00046419,30]
[394122705,1763310023589,-169.42,0.00046419,30]
[394122706,1763310023620,-150.0,0.00046448,30]
[394122707,1763310023651,-189.41192621,0.00046464,30]
[394122708,1763310023680,-152.65065664,0.00046464,30]
[394122709,1763310023711,-402.19204744,0.00046466,120]
[394122710,1763310023740,-150.0,0.00046496,30]
[394122711,1763310023769,-152.0,0.000465,120]
[394122712,1763310023798,-150.0,0.0004654,30]
[394122713,1763310023828,-150.0,0.00046566,30]
[394122714,1763310023858,-1000.0,0.0004662,30]
[394122715,1763310023888,-150.0,0.00046626,30]
[394122716,1763310023918,-189.41192621,0.00046626,30]
[394122717,1763310023948,-152.65065664,0.00046626,30]
[394122718,1763310023980,-150.0,0.00046626,30]
[394122719,1763310024012,-150.0,0.00046626,30]
[394122720,1763310024042,-150.0,0.00046626,30]
[394122721,1763310024072,-150.0,0.00046626,30]
[394122722,1763310024102,-150.0,0.00046626,30]
[394122723,1763310024131,-150.0,0.00046626,30]
[394122724,1763310024160,-202.663689,0.00046636,120]
[394122725,1763310024189,-1208.76,0.00046666,30]
[394122726,1763310024220,-150.0,0.00046691,30]
[394122727,1763310024251,-152.0,0.000467,120]
[394122728,1763310024281,-150.0,0.00046715,120]
[394122729,1763310024311,-150.0,0.00046715,120]
[394122730,1763310024342,-150.0,0.00046745,30]
[394122731,1763310024374,-189.41192621,0.00046787,30]
[394122732,1763310024407,-152.65065664,0.00046787,30]
[394122733,1763310024439,-150.0,0.00046798,30]
[394122734,1763310024470,-2099.0,0.000468,120]
[394122735,1763310024501,-150.0,0.00046803,30]
[394122736,1763310024530,-700.23,0.0004683,30]
[394122737,1763310024559,-700.23,0.0004683,30]
[394122738,1763310024588,-1084.56,0.0004683,30]
[394122739,1763310024618,-150.0,0.00046839,30]
[394122740,1763310024647,-715.06,0.00046842,30]
[394122741,1763310024676,-700.23,0.00046842,30]
[394122742,1763310024704,-478.25,0.00046842,30]
[394122743,1763310024734,-478.25,0.00046842,30]
[394122744,1763310024762,-700.23,0.00046842,30]
[394122745,1763310024790,-1400.29,0.00046842,30]
[394122746,1763310024819,-700.23,0.00046842,30]
[394122747,1763310024848,-478.25,0.00046842,30]
[394122748,1763310024879,-700.23,0.00046842,30]
[394122749,1763310024910,-478.25,0.00046842,30]
[394122750,1763310025105,-700.23,0.00046842,30]
[394122751,1763310025144,-478.25,0.00046842,30]
[394122752,1763310025173,-967.85,0.00046842,30]
[394122753,1763310025202,-700.23,0.00046842,30]
[394122754,1763310025232,-700.23,0.00046842,30]
[394122755,1763310025262,-700.23,0.00046842,30]
[394122756,1763310025291,-700.23,0.00046842,30]
[394122757,1763310025322,-700.23,0.00046842,30]
[394122758,1763310025355,-700.23,0.00046842,30]
[394122759,1763310025386,-700.23,0.00046842,30]
[394122760,1763310025421,-700.23,0.00046842,30]
[394122761,1763310025454,-700.23,0.00046842,30]
[394122762,1763310025485,-700.23,0.00046842,30]
[394122763,1763310025516,-150.0,0.00046856,120]
[394122764,1763310025547,-963.85,0.00046877,30]
[394122765,1763310025577,-150.0,0.00046886,30]
[394122766,1763310025607,-1000.0,0.00046894,30]
[394122767,1763310025638,-603.92596245,0.000469,120]
[394122768,1763310025669,-150.0,0.00046925,30]
[394122769,1763310025700,-189.41192621,0.00046949,30]
[394122770,1763310025734,-152.65065664,0.00046949,30]
[394122771,1763310025764,-209.1860858,0.00046952,120]
[394122772,1763310025793,-209.1860858,0.00046952,120]
[394122773,1763310025823,-150.0,0.00046959,30]
[394122774,1763310025854,-12540.0,0.0004696,117]
[394122775,1763310025885,-213.0,0.0004698,30]
[394122776,1763310025916,-150.0,0.00046981,30]
[394122777,1763310025946,-257.91778498,0.00046999,32]
[394122778,1763310025977,-267.46074303,0.00046999,33]
[394122779,1763310026009,-50000.0,0.00047,47]
[394122780,1763310026038,-2375.4449172,0.00047,120]
[394122781,1763310026067,-1000.0,0.00047,60]
[394122782,1763310026096,-200.0,0.00047,120]
[394122783,1763310026127,-523.0,0.00047,120]
[394122784,1763310026157,-150.0,0.00047,60]
[394122785,1763310026185,-150.0,0.00047036,30]
[394122786,1763310026215,-150.0,0.00047052,30]
[394122787,1763310026243,-150.0,0.00047055,30]
[394122788,1763310026271,-150.0,0.00047081,30]
[394122789,1763310026299,-150.0,0.00047105,30]
[394122790,1763310026327,-189.41192621,0.0004711,30]
[394122791,1763310026356,-152.65065664,0.0004711,30]
[394122792,1763310026384,-150.0,0.00047159,30]
[394122793,1763310026416,-150.0,0.00047159,30]
[394122794,1763310026443,-1000.0,0.00047168,30]
[394122795,1763310026472,-200.0,0.00047209,120]
[394122796,1763310026500,-391.09705952,0.00047209,120]
[394122797,1763310026529,-150.0,0.00047218,30]
[394122798,1763310026557,-301.7,0.00047253,30]
[394122799,1763310026587,-150.0,0.00047253,30]
[394122800,1763310026618,-150.0,0.00047253,30]
[394122801,1763310026648,-271.96,0.00047253,30]
[394122802,1763310026678,-150.0,0.00047253,30]
[394122803,1763310026707,-150.0,0.00047253,30]
[394122804,1763310026736,-150.0,0.00047253,30]
[394122805,1763310026765,-600.0,0.0004726,120]
[394122806,1763310026797,-150.0,0.00047265,30]
[394122807,1763310026829,-189.41192621,0.00047272,30]
[394122808,1763310026859,-152.65065664,0.00047272,30]
[394122809,1763310026890,-150.0,0.00047275,30]
[394122810,1763310026921,-351.98,0.00047278,30]
[394122811,1763310026951,-150.0,0.00047284,30]
[394122812,1763310026982,-1208.76,0.00047288,30]
[394122813,1763310027011,-150.0,0.00047292,30]
[394122814,1763310027042,-152.0,0.000473,120]
[394122815,1763310027071,-245.40019331,0.00047308,120]
[394122816,1763310027100,-150.0,0.00047313,30]
[394122817,1763310027129,-150.0,0.00047336,30]
[394122818,1763310027156,-150.0,0.00047387,30]
[394122819,1763310027187,-150.0,0.00047397,120]
[394122820,1763310027217,-152.0,0.000474,120]
[394122821,1763310027247,-1554.0,0.000474,120]
[394122822,1763310027278,-189.41192621,0.00047433,30]
[394122823,1763310027307,-152.65065664,0.00047433,30]
[394122824,1763310027338,-1000.0,0.00047442,30]
[394122825,1763310027368,-248.71531821,0.00047443,30]
[394122826,1763310027399,-75612.7398,0.00047444,30]
[394122827,1763310027430,-150.0,0.00047445,30]
[394122828,1763310027460,-150.0,0.00047464,30]
[394122829,1763310027491,-150.0,0.0004747,30]
[394122830,1763310027520,-150.0,0.00047478,30]
[394122831,1763310027549,-239.84119403,0.00047499,34]
[394122832,1763310027577,-198.29756685,0.000475,120]
[394122833,1763310027608,-150.0,0.00047514,30]
[394122834,1763310027639,-150.0,0.00047571,30]
[394122835,1763310027670,-189.41192621,0.00047594,30]
[394122836,1763310027704,-152.65065664,0.00047594,30]
[394122837,1763310027737,-150.0,0.00047643,30]
[394122838,1763310027768,-150.0,0.00047665,30]
[394122839,1763310027988,-150.0,0.00047691,30]
[394122840,1763310028021,-150.0,0.00047691,30]
[394122841,1763310028051,-1000.0,0.00047716,30]
[394122842,1763310028082,-189.41192621,0.00047756,30]
[394122843,1763310028112,-152.65065664,0.00047756,30]
[394122844,1763310028141,-150.0,0.0004781,30]
[394122845,1763310028170,-150.0,0.00047823,30]
[394122846,1763310028199,-1400.12,0.00047826,30]
[394122847,1763310028229,-700.06,0.00047826,30]
[394122848,1763310028258,-150.0,0.00047829,30]
[394122849,1763310028287,-700.23,0.00047836,30]
[394122850,1763310028317,-700.23,0.00047836,30]
[394122851,1763310028347,-700.23,0.00047836,30]
[394122852,1763310028376,-700.23,0.00047836,30]
[394122853,1763310028410,-700.23,0.00047836,30]
[394122854,1763310028439,-150.0,0.00047855,30]
[394122855,1763310028470,-150.0,0.0004786,30]
[394122856,1763310028502,-150.0,0.00047869,30]
[394122857,1763310028532,-150.0,0.00047904,30]
[394122858,1763310028562,-189.41192621,0.00047917,30]
[394122859,1763310028595,-152.65065664,0.00047917,30]
[394122860,1763310028624,-150.0,0.00047958,30]
[394122861,1763310028653,-150.0,0.00047958,30]
[394122862,1763310028683,-150.0,0.00047958,30]
[394122863,1763310028714,-420.0,0.00047966,120]
[394122864,1763310028744,-1000.0,0.0004799,30]
[394122865,1763310028776,-50000.0,0.00048,48]
[394122866,1763310028805,-316.46818682,0.00048,120]
[394122867,1763310028836,-273.15429923,0.00048,120]
[394122868,1763310028866,-215.04288545,0.00048,120]
[394122869,1763310028897,-152.0,0.00048,120]
[394122870,1763310028927,-2551.77209491,0.00048,120]
[394122871,1763310028957,-500.0,0.00048,120]
[394122872,1763310028987,-1788.51038733,0.00048,120]
[394122873,1763310029016,-212.29310918,0.00048,120]
[394122874,1763310029047,-500.0,0.00048,120]
[394122875,1763310029079,-316.35166753,0.00048,120]
[394122876,1763310029107,-451.38076788,0.00048,120]
[394122877,1763310029137,-584.55098594,0.00048,120]
[394122878,1763310029166,-517.61736254,0.00048,120]
[394122879,1763310029195,-150.0,0.00048,60]
[394122880,1763310029226,-150.0,0.00048,120]
[394122881,1763310029255,-150.0,0.00048,120]
[394122882,1763310029285,-150.0,0.00048,120]
[394122883,1763310029313,-451.84512834,0.00048,120]
[394122884,1763310029342,-150.0,0.00048003,30]
[394122885,1763310029371,-150.0,0.00048047,30]
[394122886,1763310029402,-150.0,0.00048055,30]
[394122887,1763310029432,-189.41192621,0.00048079,30]
[394122888,1763310029464,-152.65065664,0.00048079,30]
[394122889,1763310029494,-150.0,0.00048087,30]
[394122890,1763310029522,-152.0,0.000481,120]
[394122891,1763310029551,-1208.76,0.00048109,30]
[394122892,1763310029579,-1208.76,0.00048109,30]
[394122893,1763310029609,-1208.76,0.00048109,30]
[394122894,1763310029637,-535.05,0.00048109,30]
[394122895,1763310029667,-500.0,0.0004811,90]
[394122896,1763310029698,-150.0,0.00048118,30]
[394122897,1763310029729,-150.0,0.00048182,30]
[394122898,1763310029759,-150.0,0.00048224,30]
[394122899,1763310029788,-189.41192621,0.0004824,30]
[394122900,1763310029819,-152.65065664,0.0004824,30]
[394122901,1763310029849,-150.0,0.0004825,30]
[394122902,1763310029880,-1000.0,0.00048264,30]
[394122903,1763310029912,-150.0,0.00048265,30]
[394122904,1763310029941,-296.01216257,0.00048316,30]
[394122905,1763310029971,-150.0,0.00048331,30]
[394122906,1763310030001,-150.0,0.00048344,30]
[394122907,1763310030032,-150.0,0.00048358,120]
[394122908,1763310030063,-150.0,0.00048362,30]
[394122909,1763310030094,-189.41192621,0.00048402,30]
[394122910,1763310030125,-152.65065664,0.00048402,30]
[394122911,1763310030156,-150.0,0.00048402,30]
[394122912,1763310030186,-150.0,0.00048402,30]
[394122913,1763310030217,-150.0,0.00048445,30]
[394122914,1763310030247,-150.0,0.00048459,120]
[394122915,1763310030278,-500.0,0.000485,120]
[394122916,1763310030308,-1000.0,0.00048538,30]
[394122917,1763310030339,-150.0,0.00048541,120]
[394122918,1763310030368,-150.0,0.00048541,30]
[394122919,1763310030398,-150.0,0.00048544,30]
[394122920,1763310030431,-189.41192621,0.00048563,30]
[394122921,1763310030461,-152.65065664,0.00048563,30]
[394122922,1763310030492,-150.0,0.00048579,30]
[394122923,1763310030522,-472.83357591,0.000486,120]
[394122924,1763310030551,-150.0,0.00048602,30]
[394122925,1763310030737,-150.0,0.00048624,30]
[394122926,1763310030773,-150.0,0.0004864,30]
[394122927,1763310030804,-150.0,0.00048675,30]
[394122928,1763310030833,-152.0,0.000487,120]
[394122929,1763310030862,-150.0,0.00048721,30]
[394122930,1763310030893,-189.41192621,0.00048725,30]
[394122931,1763310030922,-152.65065664,0.00048725,30]
[394122932,1763310030951,-150.0,0.00048757,30]
[394122933,1763310030981,-150.0,0.00048757,30]
[394122934,1763310031010,-150.0,0.00048757,30]
[394122935,1763310031040,-500.0,0.00048767,120]
[394122936,1763310031068,-500.0,0.00048767,120]
[394122937,1763310031099,-500.0,0.00048767,120]
[394122938,1763310031128,-500.0,0.00048767,120]
[394122939,1763310031156,-497.99828754,0.00048767,120]
[394122940,1763310031183,-500.0,0.00048767,30]
[394122941,1763310031215,-500.0,0.00048767,30]
[394122942,1763310031246,-500.0,0.00048767,30]
[394122943,1763310031277,-1000.0,0.000488,120]
[394122944,1763310031308,-1000.0,0.000488,120]
[394122945,1763310031341,-1000.0,0.000488,120]
[394122946,1763310031376,-1000.0,0.000488,120]
[394122947,1763310031410,-1000.0,0.000488,120]
[394122948,1763310031440,-1000.0,0.000488,120]
[394122949,1763310031480,-1000.0,0.000488,120]
[394122950,1763310031511,-1000.0,0.000488,120]
[394122951,1763310031541,-1000.0,0.000488,120]
[394122952,1763310031571,-1000.0,0.000488,120]
[394122953,1763310031599,-1000.0,0.000488,120]
[394122954,1763310031628,-1000.0,0.000488,120]
[394122955,1763310031657,-1055.18,0.000488,120]
[394122956,1763310031688,-1038.63,0.000488,120]
[394122957,1763310031719,-1000.0,0.00048812,30]
[394122958,1763310031749,-150.0,0.00048835,30]
[394122959,1763310031778,-150.0,0.0004886,30]
[394122960,1763310031809,-189.41192621,0.00048886,30]
[394122961,1763310031839,-152.65065664,0.00048886,30]
[394122962,1763310031871,-150.0,0.00048892,30]
[394122963,1763310031901,-150.0,0.00048892,30]
[394122964,1763310031931,-424.81043214,0.000489,120]
[394122965,1763310031962,-150.0,0.00048901,30]
[394122966,1763310032005,-300.0,0.00048912,120]
[394122967,1763310032053,-150.0,0.00048935,30]
[394122968,1763310032101,-150.0,0.00048957,30]
[394122969,1763310032149,-150.0,0.0004897,30]
[394122970,1763310032201,-213.0,0.0004899,30]
[394122971,1763310032251,-150.0,0.00048994,30]
[394122972,1763310032304,-50000.0,0.00049,49]
[394122973,1763310032348,-152.0,0.00049,120]
[394122974,1763310032393,-234.04289202,0.00049,30]
[394122975,1763310032441,-212.48373058,0.00049,120]
[394122976,1763310032484,-379.12904534,0.00049,120]
[394122977,1763310032534,-1130.49530012,0.00049,120]
[394122978,1763310032582,-430.21198068,0.00049,120]
[394122979,1763310032626,-500.0,0.00049,120]
[394122980,1763310032668,-3218.0,0.00049,120]
[394122981,1763310032715,-30826.31159158,0.00049,120]
[394122982,1763310032762,-150.0,0.00049,60]
[394122983,1763310032813,-150.0,0.0004903,30]
[394122984,1763310032857,-500.0,0.00049041,30]
[394122985,1763310032902,-798.59,0.00049041,30]
[394122986,1763310032947,-189.41192621,0.00049048,30]
[394122987,1763310032998,-152.65065664,0.00049048,30]
[394122988,1763310033045,-150.0,0.0004908,30]
[394122989,1763310033089,-150.0,0.00049085,30]
[394122990,1763310033132,-1000.0,0.00049086,30]
[394122991,1763310033178,-150.0,0.00049112,30]
[394122992,1763310033224,-150.0,0.00049118,30]